bitfinex/quotes_BTCUSD_20250406
["timestamp","ask_amount","ask_price","bid_price","bid_amount"]
[1743929042826,0.57320353,82918.0,82917.0,0.27466729]
[1743929043128,0.57320353,82918.0,82917.0,0.27966729]
[1743929046622,0.57320353,82918.0,82917.0,0.27466729]
[1743929046847,0.57320353,82918.0,82917.0,0.27883219]
[1743929047055,0.57320353,82918.0,82917.0,0.27283219]
[1743929047259,0.57320353,82918.0,82917.0,0.27783219]
[1743929048651,0.57320353,82918.0,82917.0,0.27693405]
[1743929049348,0.57320353,82918.0,82917.0,0.2760359]
[1743929049788,0.57320353,82918.0,82917.0,0.27513776]
[1743929050415,0.57320353,82918.0,82917.0,0.27423962]
[1743929052369,0.57320353,82918.0,82917.0,0.26310717]
[1743929052694,0.57320353,82918.0,82917.0,0.12750717]
[1743929052952,0.57320353,82918.0,82917.0,0.26306717]
[1743929053154,0.52610353,82918.0,82917.0,0.27760802]
[1743929054671,0.52610353,82918.0,82917.0,0.26306717]
[1743929055626,0.76610353,82918.0,82917.0,0.26306717]
[1743929055926,0.52610353,82918.0,82917.0,0.26306717]
[1743929064746,0.52610353,82918.0,82917.0,0.27760802]
[1743929072490,0.52110353,82918.0,82917.0,0.27760802]
[1743929072667,0.18110353,82918.0,82917.0,0.27760802]
[1743929072909,0.18110353,82918.0,82917.0,0.32570802]
[1743929074987,0.18110353,82918.0,82917.0,0.33700563]
[1743929078817,0.44110353,82918.0,82917.0,0.33700563]
[1743929079014,0.00033,82918.0,82917.0,0.33700563]
[1743929080070,0.00033,82918.0,82917.0,0.20144563]
[1743929081333,0.01239,82918.0,82917.0,0.20144563]
[1743929083977,0.01239,82918.0,82917.0,0.14204802]
[1743929084177,0.01739,82918.0,82917.0,0.29204802]
[1743929085596,0.01739,82918.0,82917.0,0.30333838]
[1743929090836,0.25739,82918.0,82917.0,0.30333838]
[1743929090986,0.01739,82918.0,82917.0,0.30333838]
[1743929096998,0.35405034,82918.0,82917.0,0.13879753]
[1743929097199,0.35405034,82918.0,82917.0,0.13063321]
[1743929097535,0.35405034,82918.0,82917.0,0.11934285]
[1743929098756,0.35438014,82918.0,82917.0,0.11934285]
[1743929101191,0.35438014,82918.0,82917.0,0.1338837]
[1743929101393,0.35438014,82918.0,82917.0,0.11934285]
[1743929109106,0.35438014,82918.0,82910.0,0.15]
[1743929109107,0.35438014,82918.0,82910.0,0.02814285]
[1743929109357,0.168861,82908.0,82907.0,0.01454085]
[1743929109607,0.168861,82908.0,82907.0,0.13744382]
[1743929110006,0.168861,82908.0,82907.0,0.14550449]
[1743929110775,0.180922,82908.0,82907.0,0.14550449]
[1743929110985,0.180922,82908.0,82907.0,0.15150449]
[1743929111386,0.180922,82908.0,82907.0,0.15750449]
[1743929114517,0.185922,82908.0,82907.0,0.15750449]
[1743929115521,0.180922,82908.0,82907.0,0.15750449]
[1743929116199,0.185916,82911.0,82907.0,0.15750449]
[1743929116417,0.180916,82911.0,82910.0,0.28744382]
[1743929116826,0.180916,82911.0,82910.0,0.2954938]
[1743929117565,0.180916,82911.0,82910.0,0.3014938]
[1743929119127,0.180916,82911.0,82910.0,0.3074938]
[1743929120183,0.005,82912.0,82910.0,0.3074938]
[1743929120417,0.185913,82913.0,82912.0,0.01454085]
[1743929120671,0.185913,82913.0,82912.0,0.13744382]
[1743929120904,0.185913,82913.0,82912.0,0.14548463]
[1743929121723,0.185913,82913.0,82912.0,0.15048463]
[1743929121940,0.01706,82915.0,82912.0,0.15048463]
[1743929122164,0.01706,82915.0,82914.0,0.12290297]
[1743929122599,0.01706,82915.0,82914.0,0.13096233]
[1743929123653,0.185908,82915.0,82914.0,0.13096233]
[1743929123885,0.185908,82915.0,82914.0,0.13596233]
[1743929124932,0.185908,82915.0,82914.0,0.14196233]
[1743929126412,0.1862378,82915.0,82914.0,0.14196233]
[1743929139693,0.1862378,82915.0,82914.0,0.13528621]
[1743929143820,0.1862378,82915.0,82914.0,0.14982706]
[1743929144022,0.5262378,82915.0,82914.0,0.13528621]
[1743929144449,0.5262378,82915.0,82914.0,0.12722685]
[1743929145392,0.5262378,82915.0,82914.0,0.12122685]
[1743929145799,0.5262378,82915.0,82914.0,0.12622685]
[1743929146170,0.5262378,82915.0,82914.0,0.12122685]
[1743929146378,0.5262378,82915.0,82914.0,0.12022685]
[1743929146599,0.5262378,82915.0,82914.0,0.11622685]
[1743929146809,0.5262378,82915.0,82914.0,0.12022685]
[1743929147035,0.5262378,82915.0,82914.0,0.12322685]
[1743929152261,0.5262378,82915.0,82914.0,0.11922685]
[1743929152501,0.5262378,82915.0,82914.0,0.11622685]
[1743929152750,0.5262378,82915.0,82914.0,0.11922685]
[1743929152970,0.5262378,82915.0,82914.0,0.12122685]
[1743929158979,0.5262378,82915.0,82914.0,0.005]
[1743929162473,0.5262378,82915.0,82914.0,0.003]
[1743929162888,0.5262378,82915.0,82914.0,0.005]
[1743929163321,0.5262378,82915.0,82914.0,0.002]
[1743929164317,0.5262378,82915.0,82914.0,0.004]
[1743929168752,0.5262378,82915.0,82914.0,0.0041649]
[1743929169154,0.7962378,82915.0,82914.0,0.0041649]
[1743929169362,0.5262378,82915.0,82914.0,0.0041649]
[1743929179644,0.8062378,82915.0,82914.0,0.0041649]
[1743929179907,0.5262378,82915.0,82914.0,0.0041649]
[1743929181312,0.5262378,82915.0,82914.0,0.12706787]
[1743929182731,0.0003298,82915.0,82914.0,0.20250373]
[1743929182964,0.0053298,82915.0,82914.0,0.39770373]
[1743929183186,0.0053298,82915.0,82914.0,0.40336056]
[1743929187075,0.0173898,82915.0,82914.0,0.40336056]
[1743929187306,0.0053298,82915.0,82914.0,0.40336056]
[1743929189919,0.0173898,82915.0,82914.0,0.40336056]
[1743929190140,0.0053298,82915.0,82914.0,0.40336056]
[1743929192268,0.0173898,82915.0,82914.0,0.40336056]
[1743929193848,0.0053298,82915.0,82914.0,0.40336056]
[1743929194054,0.0173898,82915.0,82914.0,0.40336056]
[1743929194477,0.0173898,82915.0,82914.0,0.40136056]
[1743929194878,0.0173898,82915.0,82914.0,0.40436056]
[1743929195237,0.0173898,82915.0,82914.0,0.40936056]
[1743929198590,0.0173898,82915.0,82914.0,0.31456056]
[1743929199945,0.0173898,82915.0,82914.0,0.15001971]
[1743929207711,0.2573898,82915.0,82914.0,0.15001971]
[1743929207917,0.0173898,82915.0,82914.0,0.15001971]
[1743929209479,0.3573898,82915.0,82914.0,0.15001971]
[1743929209680,0.3573898,82915.0,82914.0,0.14436288]
[1743929210109,0.4057898,82915.0,82914.0,0.14436288]
[1743929210332,0.4057898,82915.0,82914.0,0.0101649]
[1743929210777,0.4057898,82915.0,82914.0,0.0051649]
[1743929210999,0.4057898,82915.0,82914.0,0.0021649]
[1743929211432,0.4057898,82915.0,82914.0,0.0041649]
[1743929215992,0.3573898,82915.0,82914.0,0.12706787]
[1743929221822,0.3573898,82915.0,82914.0,0.14836818]
[1743929222476,0.3573898,82915.0,82914.0,0.13382733]
[1743929222857,0.3573898,82915.0,82914.0,0.12706787]
[1743929226249,0.3573898,82915.0,82914.0,0.13835113]
[1743929228742,0.3573898,82915.0,82914.0,0.13748099]
[1743929229382,0.3573898,82915.0,82914.0,0.13658163]
[1743929229985,0.3573898,82915.0,82914.0,0.13568243]
[1743929230633,0.3573898,82915.0,82914.0,0.13478322]
[1743929231279,0.3573898,82915.0,82914.0,0.13494812]
[1743929234724,0.3573898,82915.0,82914.0,0.27026812]
[1743929235077,0.3573898,82915.0,82914.0,0.27702758]
[1743929240093,0.0003298,82915.0,82914.0,0.38716843]
[1743929240296,0.0053298,82915.0,82914.0,0.53716843]
[1743929240507,0.0173898,82915.0,82914.0,0.53040897]
[1743929240718,0.0173898,82915.0,82914.0,0.48110897]
[1743929241111,0.0173898,82915.0,82914.0,0.34578897]
[1743929241321,0.0173898,82915.0,82914.0,0.48051198]
[1743929241669,0.0173898,82915.0,82914.0,0.43721198]
[1743929242538,0.0173898,82915.0,82914.0,0.43921198]
[1743929243450,0.0173898,82915.0,82914.0,0.27467113]
[1743929243622,0.3573898,82915.0,82914.0,0.27467113]
[1743929251991,0.3573898,82915.0,82914.0,0.13935113]
[1743929252334,0.3573898,82915.0,82914.0,0.27467113]
[1743929254607,0.3573898,82915.0,82914.0,0.13935113]
[1743929254880,0.3573898,82915.0,82914.0,0.27467113]
[1743929255756,0.3573898,82915.0,82914.0,0.26338787]
[1743929256174,0.6173898,82915.0,82914.0,0.26338787]
[1743929256405,0.3573898,82915.0,82914.0,0.26338787]
[1743929256552,0.3573898,82915.0,82914.0,0.12806787]
[1743929256763,0.3573898,82915.0,82914.0,0.26338787]
[1743929257789,0.3573898,82915.0,82914.0,0.0051649]
[1743929257926,0.3573898,82915.0,82914.0,0.1404849]
[1743929264793,0.3573898,82915.0,82914.0,0.0051649]
[1743929269523,0.5973898,82915.0,82914.0,0.0051649]
[1743929269750,0.3573898,82915.0,82914.0,0.0051649]
[1743929281705,0.6173898,82915.0,82914.0,0.0051649]
[1743929281941,0.3573898,82915.0,82914.0,0.0051649]
[1743929284497,0.3573898,82915.0,82914.0,0.01646707]
[1743929290443,0.3573898,82915.0,82914.0,0.0051649]
[1743929293067,0.3573898,82915.0,82914.0,0.0001649]
[1743929293285,0.3573898,82915.0,82914.0,0.0021649]
[1743929294099,0.3573898,82915.0,82914.0,0.0001649]
[1743929294319,0.3573898,82915.0,82914.0,0.0041649]
[1743929294674,0.3573898,82915.0,82914.0,0.0021649]
[1743929295080,0.3573898,82915.0,82914.0,0.0041649]
[1743929295828,0.3573898,82915.0,82914.0,9e-07]
[1743929296800,0.3573898,82915.0,82914.0,0.0010009]
[1743929297206,0.3573898,82915.0,82914.0,9e-07]
[1743929297390,0.3573898,82915.0,82914.0,0.0010009]
[1743929298052,0.3573898,82915.0,82914.0,0.001]
[1743929298411,0.3573898,82915.0,82914.0,0.002]
[1743929298798,0.3573898,82915.0,82914.0,0.001]
[1743929299223,0.3573898,82915.0,82914.0,0.002]
[1743929299421,0.3573898,82915.0,82914.0,1e-06]
[1743929299422,0.4037898,82915.0,82914.0,1e-06]
[1743929299864,0.065261,82911.0,82910.0,9e-07]
[1743929300060,0.574116,82911.0,82910.0,9e-07]
[1743929301523,0.574116,82911.0,82910.0,0.0020009]
[1743929301899,0.574116,82911.0,82910.0,9e-07]
[1743929307763,0.525916,82911.0,82910.0,9e-07]
[1743929307983,0.352061,82908.0,82907.0,0.0001649]
[1743929308330,0.357061,82908.0,82907.0,0.1354449]
[1743929309152,0.017061,82908.0,82907.0,0.1364449]
[1743929310470,0.017061,82908.0,82907.0,0.1374449]
[1743929318645,0.3573908,82908.0,82907.0,0.1374449]
[1743929319282,0.3573908,82908.0,82907.0,9e-07]
[1743929319693,0.4034908,82908.0,82907.0,9e-07]
[1743929320571,0.005,82888.0,82886.0,0.0498]
[1743929320788,0.525966,82888.0,82887.0,0.90983904]
[1743929321018,0.525966,82888.0,82887.0,0.91439254]
[1743929321451,0.525966,82888.0,82887.0,0.90939254]
[1743929321978,0.525966,82888.0,82887.0,0.91439254]
[1743929322965,0.525966,82888.0,82887.0,0.92039254]
[1743929323812,0.53808942,82888.0,82887.0,0.78511254]
[1743929324003,0.53808942,82888.0,82887.0,0.93493339]
[1743929324209,0.53808942,82888.0,82887.0,0.98473339]
[1743929324210,0.525966,82888.0,82887.0,0.98473339]
[1743929325399,0.525966,82888.0,82887.0,0.33853339]
[1743929332128,0.525966,82888.0,82887.0,0.33869839]
[1743929332363,0.525966,82888.0,82887.0,0.33369839]
[1743929333835,0.525966,82888.0,82887.0,0.19841839]
[1743929334075,0.525966,82888.0,82887.0,0.33621839]
[1743929334313,0.525966,82888.0,82887.0,0.19841839]
[1743929334546,0.525966,82888.0,82887.0,0.33621839]
[1743929335860,0.525966,82888.0,82887.0,0.19841839]
[1743929336077,0.525966,82888.0,82887.0,0.33621839]
[1743929341070,0.185966,82888.0,82887.0,0.33621839]
[1743929343235,0.185966,82888.0,82887.0,0.33166489]
[1743929346823,0.186296,82888.0,82887.0,0.33166489]
[1743929353966,0.436296,82888.0,82887.0,0.33166489]
[1743929354165,0.186296,82888.0,82887.0,0.33166489]
[1743929356242,0.169232,82888.0,82887.0,0.33166489]
[1743929356711,0.181296,82888.0,82887.0,0.32666489]
[1743929359191,0.181296,82888.0,82887.0,0.27586489]
[1743929359537,0.181296,82888.0,82887.0,0.13906489]
[1743929359749,0.181296,82888.0,82887.0,0.27586489]
[1743929366431,0.451296,82888.0,82887.0,0.27586489]
[1743929366568,0.181296,82888.0,82887.0,0.27586489]
[1743929366960,0.186296,82888.0,82887.0,0.27586489]
[1743929367160,0.186296,82888.0,82887.0,0.13906489]
[1743929367374,0.186296,82888.0,82887.0,0.27562489]
[1743929367718,0.186296,82888.0,82887.0,0.13906489]
[1743929367900,0.186296,82888.0,82887.0,0.27558489]
[1743929376965,0.186296,82888.0,82887.0,0.13906489]
[1743929377206,0.186296,82888.0,82887.0,0.27522489]
[1743929379885,0.186296,82888.0,82887.0,0.26068404]
[1743929380302,0.186296,82888.0,82887.0,0.2674359]
[1743929383353,0.186296,82888.0,82887.0,0.1312759]
[1743929383583,0.186296,82888.0,82887.0,0.2671959]
[1743929392239,0.186296,82888.0,82887.0,0.1312759]
[1743929392462,0.186296,82888.0,82887.0,0.2669959]
[1743929401550,0.186296,82888.0,82887.0,0.26609707]
[1743929402101,0.186296,82888.0,82887.0,0.26519825]
[1743929402728,0.186296,82888.0,82887.0,0.26429942]
[1743929404752,0.186296,82888.0,82887.0,0.26389942]
[1743929408160,0.436296,82888.0,82887.0,0.26389942]
[1743929408400,0.186296,82888.0,82887.0,0.26389942]
[1743929408619,0.174232,82888.0,82887.0,0.32754027]
[1743929409063,0.174232,82888.0,82887.0,0.47754027]
[1743929410118,0.186296,82888.0,82887.0,0.47754027]
[1743929410932,0.186296,82888.0,82887.0,0.32754027]
[1743929411153,0.186296,82888.0,82887.0,0.27844027]
[1743929411433,0.186296,82888.0,82887.0,0.26389942]
[1743929412343,0.17915456,82888.0,82887.0,0.26389942]
[1743929422505,0.17915456,82888.0,82887.0,0.26389942]
[1743929422828,0.51915456,82888.0,82887.0,0.26389942]
[1743929431284,0.51915456,82888.0,82887.0,0.26922717]
[1743929439612,0.51415456,82888.0,82887.0,0.28376802]
[1743929439849,0.51915456,82888.0,82887.0,0.33206802]
[1743929444895,0.74915456,82888.0,82887.0,0.33206802]
[1743929445197,0.51915456,82888.0,82887.0,0.33206802]
[1743929460886,0.51915456,82888.0,82887.0,0.28376802]
[1743929463769,0.51915456,82888.0,82887.0,0.26922717]
[1743929467753,0.51915456,82888.0,82887.0,0.13390717]
[1743929468048,0.51915456,82888.0,82887.0,0.26922717]
[1743929471379,0.79915456,82888.0,82887.0,0.26922717]
[1743929471500,0.51915456,82888.0,82887.0,0.26922717]
[1743929473548,0.51915456,82888.0,82887.0,0.28376802]
[1743929483384,0.75915456,82888.0,82887.0,0.28376802]
[1743929483622,0.51915456,82888.0,82887.0,0.28376802]
[1743929492763,0.51915456,82888.0,82887.0,0.14844802]
[1743929492900,0.51915456,82888.0,82887.0,0.28372802]
[1743929495126,0.77915456,82888.0,82887.0,0.28372802]
[1743929495354,0.51915456,82888.0,82887.0,0.28372802]
[1743929507187,0.76915456,82888.0,82887.0,0.28372802]
[1743929507320,0.51915456,82888.0,82887.0,0.28372802]
[1743929520563,0.17915456,82888.0,82887.0,0.28372802]
[1743929526986,0.00033,82888.0,82887.0,0.51259602]
[1743929528118,0.00033,82888.0,82887.0,0.50659602]
[1743929528530,0.00033,82888.0,82887.0,0.51259602]
[1743929529006,0.00033,82888.0,82887.0,0.50759602]
[1743929529216,0.00033,82888.0,82887.0,0.51359602]
[1743929533260,0.181296,82888.0,82887.0,0.33262802]
[1743929533491,0.169232,82888.0,82887.0,0.28468802]
[1743929533722,0.00033,82888.0,82887.0,0.28468802]
[1743929543483,0.00033,82888.0,82887.0,0.29675202]
[1743929543687,0.00033,82888.0,82887.0,0.34455202]
[1743929546107,0.00033,82888.0,82887.0,0.99579202]
[1743929560495,0.00033,82888.0,82887.0,0.99370678]
[1743929566527,0.24033,82888.0,82887.0,0.99370678]
[1743929566743,0.00033,82888.0,82887.0,0.99370678]
[1743929577719,0.00033,82888.0,82887.0,1.04080678]
[1743929577929,0.00033,82888.0,82887.0,1.07828906]
[1743929578345,0.00033,82888.0,82887.0,1.04080678]
[1743929578552,0.00033,82888.0,82887.0,1.07828859]
[1743929583254,0.00033,82888.0,82887.0,1.77828859]
[1743929583882,0.00033,82888.0,82887.0,1.78957715]
[1743929584116,0.00033,82888.0,82887.0,1.77757715]
[1743929584577,0.00033,82888.0,82887.0,1.78357715]
[1743929585026,0.00033,82888.0,82887.0,1.77757715]
[1743929585456,0.00033,82888.0,82887.0,1.78357715]
[1743929585693,0.00033,82888.0,82887.0,1.78957715]
[1743929585879,0.00033,82888.0,82887.0,1.78357715]
[1743929586198,0.00033,82888.0,82887.0,1.78957715]
[1743929586990,0.00033,82888.0,82887.0,1.78357715]
[1743929587220,0.00033,82888.0,82887.0,1.77757715]
[1743929587447,0.00033,82888.0,82887.0,1.78357715]
[1743929587690,0.00033,82888.0,82887.0,1.78957715]
[1743929588741,0.00033,82888.0,82887.0,1.77757715]
[1743929589178,0.00033,82888.0,82887.0,1.78357715]
[1743929589607,0.00033,82888.0,82887.0,1.78957715]
[1743929589836,0.0003298,82908.0,82907.0,0.330924]
[1743929590056,0.0003298,82908.0,82907.0,0.65938478]
[1743929590057,0.1103298,82908.0,82907.0,0.65938478]
[1743929590302,0.0003298,82908.0,82907.0,0.67067334]
[1743929591929,0.0003298,82908.0,82907.0,0.67567334]
[1743929592145,0.0003298,82908.0,82907.0,0.68862011]
[1743929592607,0.0003298,82908.0,82907.0,0.67962011]
[1743929592829,0.0003298,82908.0,82907.0,0.73102011]
[1743929593992,0.0003298,82908.0,82907.0,0.73702011]
[1743929594622,0.0003298,82908.0,82907.0,1.43702011]
[1743929596088,0.0003298,82908.0,82907.0,1.43202011]
[1743929596511,0.0003298,82908.0,82907.0,1.43802011]
[1743929597040,0.0003298,82908.0,82907.0,1.43202011]
[1743929597241,0.0003298,82908.0,82907.0,1.43802011]
[1743929597573,0.0003298,82908.0,82907.0,1.29690011]
[1743929597785,0.0003298,82908.0,82907.0,1.43202011]
[1743929597989,0.0003298,82908.0,82907.0,0.73802011]
[1743929598492,0.0003298,82908.0,82907.0,0.73202011]
[1743929598784,0.0003298,82908.0,82907.0,0.73802011]
[1743929599533,0.0003298,82908.0,82907.0,1.43802011]
[1743929601180,0.0003298,82908.0,82907.0,0.73802011]
[1743929601993,0.0003298,82908.0,82907.0,1.38906011]
[1743929602523,0.0003298,82908.0,82907.0,1.95394011]
[1743929602729,0.0003298,82908.0,82907.0,2.08902011]
[1743929604831,0.0003298,82908.0,82907.0,1.38902011]
[1743929608537,0.0003298,82908.0,82907.0,2.08902011]
[1743929610327,0.0003298,82908.0,82907.0,1.38902011]
[1743929617089,0.0003298,82908.0,82907.0,2.08902011]
[1743929618671,0.0003298,82908.0,82907.0,1.38902011]
[1743929619986,0.0003298,82908.0,82907.0,2.08902011]
[1743929620386,0.0003298,82908.0,82907.0,2.12644694]
[1743929623550,0.0003298,82908.0,82907.0,2.12640694]
[1743929627315,0.0003298,82915.0,82914.0,0.58374985]
[1743929627492,0.0003298,82915.0,82914.0,0.79020247]
[1743929627703,0.0003298,82918.0,82917.0,0.330903]
[1743929627921,0.0003298,82918.0,82917.0,0.46834682]
[1743929628127,0.0003298,82932.0,82931.0,0.330873]
[1743929628368,0.0003298,82932.0,82931.0,0.60335682]
[1743929628590,0.0003298,82932.0,82931.0,0.61293519]
[1743929628804,0.0003298,82932.0,82931.0,0.62422375]
[1743929629370,0.0003298,82932.0,82931.0,0.63321639]
[1743929629600,0.0003298,82932.0,82931.0,0.63521639]
[1743929630679,0.0003298,82932.0,82931.0,0.63721639]
[1743929630905,0.0003298,82932.0,82931.0,0.64951685]
[1743929631532,0.0003298,82932.0,82931.0,0.64751685]
[1743929631994,0.0003298,82932.0,82931.0,0.65251685]
[1743929632214,0.0003298,82932.0,82931.0,0.65051685]
[1743929632430,0.0003298,82932.0,82931.0,0.65651685]
[1743929632855,0.0003298,82932.0,82931.0,0.63522375]
[1743929634176,0.0003298,82932.0,82931.0,0.63518375]
[1743929635102,0.0003298,82932.0,82931.0,0.62918375]
[1743929635316,0.0003298,82932.0,82931.0,0.62418375]
[1743929635527,0.0003298,82932.0,82931.0,0.63618375]
[1743929636969,0.0003298,82932.0,82931.0,1.34161085]
[1743929638899,0.0003298,82932.0,82931.0,1.32961085]
[1743929639111,0.0003298,82932.0,82931.0,1.33561085]
[1743929639317,0.0003298,82932.0,82931.0,1.34161085]
[1743929639734,0.0703298,82932.0,82931.0,2.04161085]
[1743929639946,0.004,82939.0,82938.0,0.180857]
[1743929640145,0.00413671,82939.0,82938.0,0.31830082]
[1743929640347,0.00413671,82939.0,82938.0,0.32772834]
[1743929640935,0.00413671,82939.0,82938.0,0.3390169]
[1743929641784,0.00413671,82939.0,82938.0,0.3450169]
[1743929642000,0.00413671,82939.0,82938.0,0.3500169]
[1743929645914,0.00446651,82939.0,82938.0,0.3500169]
[1743929648412,0.00446651,82939.0,82938.0,0.4849769]
[1743929648698,0.0666,82957.0,82956.0,0.15]
[1743929648911,0.0666,82957.0,82956.0,0.42240382]
[1743929649118,0.0666,82957.0,82956.0,0.43177097]
[1743929649525,0.0666,82957.0,82956.0,0.44305953]
[1743929649881,0.0666,82957.0,82956.0,0.44405953]
[1743929650279,0.0666,82957.0,82956.0,0.44505953]
[1743929650911,0.02,82957.0,82956.0,0.44505953]
[1743929651113,0.02,82957.0,82956.0,1.09585953]
[1743929651521,0.29,82957.0,82956.0,1.10791353]
[1743929651699,0.02,82957.0,82956.0,1.10791353]
[1743929653645,0.02,82957.0,82956.0,1.10691353]
[1743929653882,0.02,82957.0,82956.0,1.11291353]
[1743929655007,0.02,82957.0,82956.0,1.11191353]
[1743929655413,0.02,82957.0,82956.0,1.11791353]
[1743929658833,0.0203298,82957.0,82956.0,1.11791353]
[1743929659329,0.0203298,82957.0,82956.0,0.97089953]
[1743929659537,0.0203298,82957.0,82956.0,1.10585953]
[1743929659741,0.0203298,82957.0,82956.0,1.27462353]
[1743929659960,0.0203298,82957.0,82956.0,1.13966353]
[1743929660189,0.0203298,82957.0,82956.0,1.28667753]
[1743929663840,0.0203298,82957.0,82956.0,1.28663753]
[1743929665602,0.0203298,82957.0,82956.0,1.28063753]
[1743929666052,0.0203298,82957.0,82956.0,1.28663753]
[1743929666296,0.0203298,82957.0,82956.0,1.28063753]
[1743929666535,0.0203298,82957.0,82956.0,1.28663753]
[1743929667199,0.0203298,82957.0,82956.0,1.29586311]
[1743929667931,0.00773665,82957.0,82956.0,1.33496311]
[1743929668354,0.00773665,82957.0,82956.0,1.34096311]
[1743929668576,0.00773665,82957.0,82956.0,1.33496311]
[1743929669010,0.00773665,82957.0,82956.0,1.34096311]
[1743929669466,0.00773665,82957.0,82956.0,2.04096311]
[1743929683983,0.00171224,82957.0,82956.0,2.04096311]
[1743929684224,0.5087,82988.0,82987.0,0.15]
[1743929684436,0.5091559,82988.0,82987.0,0.42232382]
[1743929684798,0.5212049,82988.0,82987.0,0.4298761]
[1743929684999,0.5212049,82988.0,82987.0,0.44116466]
[1743929685570,0.5212049,82988.0,82987.0,0.44316466]
[1743929685737,0.5212049,82988.0,82987.0,0.44516466]
[1743929686596,0.53346123,82988.0,82987.0,0.44516466]
[1743929687048,0.62716123,82988.0,82987.0,0.44516466]
[1743929693539,0.01271223,82988.0,82987.0,0.44516466]
[1743929693776,0.01271223,82988.0,82987.0,0.62591566]
[1743929693777,0.0004559,82988.0,82987.0,0.62591566]
[1743929694022,0.0004559,82988.0,82987.0,0.45721466]
[1743929694259,0.0004559,82988.0,82987.0,0.44516466]
[1743929694260,0.0950559,82988.0,82987.0,0.44516466]
[1743929695204,0.0950559,82988.0,82987.0,0.44316466]
[1743929695456,0.0483559,82988.0,82987.0,0.44716466]
[1743929695967,0.0483559,82988.0,82987.0,0.44516466]
[1743929696315,0.0483559,82988.0,82987.0,0.44916466]
[1743929696542,0.0483559,82988.0,82987.0,0.44516466]
[1743929696543,0.0004559,82988.0,82987.0,0.44516466]
[1743929696975,0.0004559,82988.0,82987.0,0.44916466]
[1743929697189,0.0007855,82988.0,82987.0,0.44916466]
[1743929697883,0.0007855,82988.0,82987.0,0.44516466]
[1743929698147,0.0007855,82988.0,82987.0,0.44916466]
[1743929699081,0.0007855,82988.0,82987.0,0.46121466]
[1743929700104,0.0007855,82988.0,82987.0,0.45721466]
[1743929700537,0.0007855,82988.0,82987.0,0.46121466]
[1743929700736,0.0007855,82988.0,82987.0,0.45721466]
[1743929700979,0.0007855,82988.0,82987.0,0.45321466]
[1743929701103,0.0007855,82988.0,82987.0,0.45921466]
[1743929701512,0.0007855,82988.0,82987.0,0.44716466]
[1743929701722,0.0007855,82988.0,82987.0,0.45216466]
[1743929701916,0.0007855,82988.0,82987.0,0.31728466]
[1743929702138,0.0007855,82988.0,82987.0,0.45212466]
[1743929702339,0.0007855,82988.0,82987.0,0.44712466]
[1743929702748,0.0007855,82988.0,82987.0,0.45312466]
[1743929704894,0.0007855,82988.0,82987.0,0.31828466]
[1743929705076,0.0007855,82988.0,82987.0,0.45312466]
[1743929711703,0.0007855,82988.0,82987.0,0.16828466]
[1743929711923,0.0128345,82988.0,82987.0,0.45312466]
[1743929712324,0.0128345,82988.0,82987.0,0.31828466]
[1743929712484,0.0128345,82988.0,82987.0,0.45312466]
[1743929718228,0.3528345,82988.0,82987.0,0.30374381]
[1743929718433,0.3528345,82988.0,82987.0,0.43858381]
[1743929720793,0.3528345,82988.0,82987.0,0.28858381]
[1743929721642,0.3528345,82988.0,82987.0,0.15374381]
[1743929721853,0.4003345,82988.0,82987.0,0.28858381]
[1743929722083,0.4003345,82988.0,82987.0,0.15374381]
[1743929722489,0.4003345,82988.0,82987.0,0.14245525]
[1743929723289,0.4003345,82988.0,82987.0,0.01955228]
[1743929723702,0.546729,82988.0,82987.0,0.01955228]
[1743929723902,0.4500345,82988.0,82987.0,0.01707564]
[1743929724103,0.4500345,82988.0,82987.0,0.012]
[1743929724712,0.4500345,82988.0,82987.0,0.006]
[1743929724926,0.4500345,82988.0,82987.0,0.009]
[1743929725120,0.01205,82983.0,82970.0,0.01125381]
[1743929725334,0.07875,82983.0,82970.0,0.01125381]
[1743929725538,0.587459,82983.0,82970.0,0.01125381]
[1743929726148,0.587459,82983.0,82969.0,0.13484]
[1743929726347,0.59631421,82983.0,82969.0,0.13484]
[1743929726595,0.59631421,82983.0,82982.0,0.0041648]
[1743929726846,0.73954408,82983.0,82982.0,8e-07]
[1743929727289,0.575598,82965.0,82964.0,0.13484]
[1743929727532,0.559798,82965.0,82964.0,0.13484]
[1743929728187,0.559798,82965.0,82964.0,0.25774297]
[1743929728188,0.520798,82965.0,82964.0,0.25774297]
[1743929728991,0.520798,82965.0,82964.0,0.12690297]
[1743929729195,0.520798,82965.0,82964.0,0.26174297]
[1743929729418,0.520798,82965.0,82964.0,0.25774297]
[1743929729849,0.520798,82965.0,82964.0,0.26174297]
[1743929730264,0.520798,82965.0,82964.0,0.26274297]
[1743929730590,0.520798,82965.0,82964.0,0.13290297]
[1743929731040,0.520798,82965.0,82964.0,0.26774297]
[1743929731671,0.520798,82965.0,82964.0,0.26274297]
[1743929731872,0.520798,82965.0,82964.0,0.25774297]
[1743929732108,0.520798,82965.0,82964.0,0.26574297]
[1743929737259,0.520798,82965.0,82964.0,0.26590777]
[1743929740882,0.520798,82965.0,82964.0,0.27714414]
[1743929753272,0.760798,82965.0,82964.0,0.27714414]
[1743929753473,0.520798,82965.0,82964.0,0.27714414]
[1743929759113,0.520798,82965.0,82964.0,0.14230414]
[1743929759322,0.520798,82965.0,82964.0,0.27714414]
[1743929760157,0.520798,82965.0,82964.0,0.14230414]
[1743929760366,0.520798,82965.0,82964.0,0.27714414]
[1743929760781,0.520798,82965.0,82964.0,0.14230414]
[1743929760993,0.520798,82965.0,82964.0,0.27714414]
[1743929763400,0.520798,82965.0,82964.0,0.15424117]
[1743929764449,0.520798,82965.0,82964.0,0.0081648]
[1743929765054,0.566598,82965.0,82964.0,0.0081648]
[1743929770874,0.520798,82965.0,82964.0,0.0081648]
[1743929772641,0.520798,82965.0,82964.0,0.13106777]
[1743929772903,0.520798,82965.0,82964.0,0.26590777]
[1743929774794,0.520798,82965.0,82964.0,0.13106777]
[1743929774985,0.520798,82965.0,82964.0,0.26594777]
[1743929778814,0.520798,82965.0,82964.0,0.13106777]
[1743929779031,0.520798,82965.0,82964.0,0.26590777]
[1743929780843,0.770798,82965.0,82964.0,0.26590777]
[1743929781057,0.520798,82965.0,82964.0,0.26590777]
[1743929800374,0.520798,82965.0,82964.0,0.27717303]
[1743929805288,0.520798,82965.0,82964.0,0.14233303]
[1743929805492,0.520798,82965.0,82964.0,0.27717303]
[1743929811640,0.520798,82965.0,82964.0,0.26590777]
[1743929811819,0.520798,82965.0,82964.0,0.27718107]
[1743929816998,0.520798,82965.0,82964.0,0.14234107]
[1743929817244,0.520798,82965.0,82964.0,0.27718107]
[1743929819166,0.520798,82965.0,82964.0,0.26590777]